Workbook

Sheet Inicio
A2: Introducción a las fórmulas
A3: En unos pocos pasos, podrá empezar a crear fórmulas y funciones de Excel, la aplicación de hoja de cálculo más eficaz del mundo.
A4: Vuelva al principio presionando CTRL+INICIO. Para empezar el recorrido, presione CTRL+AVANZAR PÁGINA.

Sheet Conceptos básicos
A1: Conceptos básicos: realizar operaciones matemáticas con Excel
A2: Puede sumar, restar, multiplicar y dividir en Excel sin tener que usar las funciones integradas. Solo tiene que usar algunos operadores básicos: +, -, *, /. Todas las fórmulas empiezan con un signo igual (=). | C2: Números para usar: | E2: Operación: | F2: Fórmulas: | G2: Respuestas:
A3: Para sumar, seleccione la celda F3, escriba =C3+C4 y, después, presione ENTRAR. | C3: 1 | E3: Suma (+) | G3: =C3+C4 -> 3
A4: Para restar, seleccione la celda F4, escriba =C3-C4 y, después, presione ENTRAR. | C4: 2 | E4: Resta (-) | G4: =C3-C4 -> -1
A5: Para multiplicar, seleccione la celda F5, escriba =C3*C4 y, después, presione ENTRAR. | E5: Multiplicación (*) | G5: =C3*C4 -> 2
A6: Para dividir, seleccione la celda F6, escriba =C3/C4 y, después, presione ENTRAR. | E6: División (/) | G6: =C3/C4 -> 0.5
A7: Mire esto: cambie los números en las celdas C3 y C4 y vea cómo los resultados de las fórmulas cambian automáticamente. | E7: Potencia (^) | G7: =C3^C4 -> 1
A8: CRÉDITO ADICIONAL: Puede elevar un valor a una potencia mediante el operador exponencial (^), por ejemplo =A1^A2. Puede escribirlo con Mayús+^. En la celda F7, escriba =C3^C4.
A9: Vaya hacia abajo para obtener más detalles.
A10: Siguiente paso
A11: Más información sobre las fórmulas, celdas e intervalos
A12: Excel se compone de celdas individuales que se agrupan en filas y columnas. Las filas están numeradas y las columnas tienen letras. Hay más de 1 millón de filas y 16000 columnas, y se pueden incluir fórmulas en cualquiera de ellas.
A13: Las fórmulas pueden contener referencias a celdas, referencias a intervalos de celdas, operadores y constantes. Estos son algunos ejemplos de fórmulas: =A1+B1 =10+20 =SUMA(A1:A10)
A14: Observará que, en el tercer ejemplo anterior, usamos la función SUMA. Una función es un comando predefinido que toma valores, los calcula de alguna forma y devuelve un resultado. Por ejemplo, la función SUMA toma las referencias de celda o intervalos que especifique y los suma. En este ejemplo toma las celdas A1 a A10 y las suma. Excel tiene más de 400 funciones que puede explorar en la pestaña Fórmulas.
A15: Las fórmulas con funciones empiezan con un signo igual, seguido del nombre de la función con los argumentos (los valores que usa una función para calcular) entre paréntesis.
A16: Para confirmar una fórmula, presione ENTRAR. Cuando lo haga la fórmula se calculará y el resultado se mostrará en la celda. Para ver la propia fórmula, puede ver la barra de fórmulas debajo de la cinta de opciones, o presionar F2 para entrar en el Modo de edición, donde verá la fórmula en la celda. Presione ENTRAR de nuevo para finalizar la fórmula y calcular el resultado.
A17: Información sobre algunas fórmulas
A18: =10+20 es una fórmula, donde 10 y 20 son constantes y el signo + es el operador.
A19: =SUM(A1:A10) es una fórmula, donde SUMA es el nombre de función, los paréntesis de apertura y cierre contienen los argumentos de la fórmula y A1:A10 es el intervalo de celdas de la función.
A20: =SUM(A1:A10;C1:C10) es una fórmula, donde SUMA es el nombre de función, los paréntesis de apertura y cierre contienen los argumentos de la fórmula y A1:A10;C1:C10 son los intervalos de celdas de la función separados por una coma.
A21: INFORMACIÓN ÚTIL: Las constantes son valores que especifica en las celdas o fórmulas. Mientras que =10+20 puede calcular lo mismo que =A1+B1, no se recomienda usar constantes. ¿Por qué? Porque no puede ver fácilmente la constante sin seleccionar la celda y buscarla. Eso puede dificultar cambiarla más adelante. Es mucho más fácil colocar las constantes en celdas, donde pueden ajustarse fácilmente, y hacer referencia a ellas en las fórmulas. Por ejemplo: Seleccione la celda amarilla con 12 a continuación. Verá que usamos la función SUMA con un intervalo de celdas. No escriba "4" o "8" directamente en la fórmula.
A22: Anterior
A23: Siguiente
A24: Más información en la Web
A25: Usar Excel como una calculadora
A26: Información general sobre fórmulas en Excel
A27: Funciones de Excel (por categoría)
A28: Funciones de Excel (orden alfabético)
A29: Aprendizaje gratuito de Excel en línea
J40: Valores
J41: 4
J42: 8
J43: =SUM(J41:J42) -> 12

Sheet Introducción a las funciones
A1: Introducción a las funciones
A2: Las funciones le permiten hacer varias tareas, como realizar operaciones matemáticas, buscar valores o incluso calcular fechas y horas. Probemos varias formas de sumar valores con la función SUMA. | C2: Fruta | D2: Importe | F2: Carnicería | G2: Importe
A3: En la columna de Cantidad de Fruta (celda D7), escriba =SUMA(D3:D6), o escriba =SUMA (, después seleccione el intervalo con el mouse y presione ENTRAR. Esto sumará los valores de las celdas D3, D4, D5 y D6. La respuesta debería ser 170. | C3: Manzanas | D3: 50 | F3: Ternera | G3: 50
A4: Ahora vamos a probar Autosuma. Seleccione la celda en la columna de Carne (celda G7) y vaya a Fórmulas > Autosuma > seleccione SUMA. Verá que Excel escribe automáticamente la fórmula. Presione ENTRAR para confirmar. La característica Autosuma tiene todas las funciones más comunes. | C4: Naranjas | D4: 20 | F4: Pollo | G4: 30
A5: Este es un método abreviado de teclado muy útil. Seleccione la celda D15, después presione Alt = y luego ENTRAR. SUMA se introducirá automáticamente. | C5: Plátanos | D5: 60 | F5: Cerdo | G5: 10
A6: Vaya hacia abajo para obtener más detalles. | C6: Limones | D6: 40 | F6: Pescado | G6: 50
A7: CRÉDITO ADICIONAL Pruebe la función CONTAR con cualquiera de los métodos que ya probó. La función CONTAR cuenta el número de celdas de un rango que contienen números. | C7: SUMA > | D7: =SUM(D3:D6) -> 170 | F7: SUMA >
A8: Siguiente paso
A9: Más información sobre funciones | C9: Elemento | D9: Importe | F9: Elemento | G9: Importe
A10: Vaya a la pestaña Fórmulas y examine la Biblioteca de funciones, donde se muestran las funciones por categorías, como Texto, Fecha y hora, etc. Insertar función le permitirá buscar funciones por nombre y abrir a un asistente de funciones que puede ayudarle a crear la fórmula. Cuando empiece a escribir un nombre de función después de presionar =, Excel abrirá IntelliSense, que mostrará todas las funciones empezando con las letras que escriba. Cuando encuentre la que desee, presione la tecla Tab y Excel completará automáticamente el nombre de la función y escribirá el paréntesis de apertura. También mostrará los argumentos necesarios y opcionales. Ahora vamos a ver la anatomía de algunas funciones. La función SUMA está estructurada así: | C10: Pan | D10: 50 | F10: Pan | G10: 50
A11: Si la función SUMA pudiese hablar, diría que devuelve la suma de todos los valores de las celdas D35 a D38 y toda la columna H. SUMA es el nombre de la función, D35:D38 es el primer argumento de intervalo, que casi siempre es obligatorio, y H:H es el segundo argumento de intervalo, separados por comas. Ahora, vamos a probar una que no necesita argumentos. | C11: Donuts | D11: 100 | F11: Donuts | G11: 100
A12: La función HOY devuelve la fecha actual. Cuando Excel vuelva a calcular se actualizará automáticamente. | C12: Galletas | D12: 40 | F12: Galletas | G12: 40
A13: MIRE ESTO Seleccione estas celdas. Después, en la esquina inferior derecha de la ventana de Excel, busque SUMAR: 170 en la barra de la parte inferior. Esa es la Barra de estado y es otra manera de encontrar rápidamente un total y otros detalles sobre una celda o intervalo seleccionado. | C13: Pasteles | D13: 50 | F13: Pasteles | G13: 50
A14: DETALLE IMPORTANTE Haga doble clic en esta celda. Verá el 100 hacia el final. Aunque es posible colocar números en una fórmula de este modo, no es recomendable a menos que sea absolutamente necesario. Esto se conoce como una constante y es fácil olvidar que está ahí. En cambio, se recomienda hacer referencia a otra celda, como la celda F51. De esta forma, se ve fácilmente y no se oculta dentro de una fórmula. | C14: Tartas | D14: 20 | F14: Tartas | G14: 20
A15: Más información en la Web | C15: SUMA > | F15: CONTAR >
A16: Todo sobre la función SUMA
A17: Usar Autosuma para sumar números
A18: Todo sobre la función CONTAR
A19: Aprendizaje gratuito de Excel en línea
A20: Volver al principio
A21: Siguiente paso
C34: Fruta | D34: Importe
C35: Manzanas | D35: 50
C36: Naranjas | D36: 20
C37: Plátanos | D37: 60
C38: Limones | D38: 40
C39: SUMA > | D39: =SUM(D35:D38) -> 170
C44: Elemento | D44: Importe
C45: Automóviles | D45: 20
C46: Camiones | D46: 10
C47: Bicicletas | D47: 10
C48: Patines | D48: 40
D50: Total: | F50: Valor adicional | G50: Nuevo total
D51: =SUM(D45:D48,100) -> 180 | F51: 100 | G51: =SUM(D45:D48,F51) -> 180

Sheet PROMEDIO
A1: Función PROMEDIO
A2: Use la función PROMEDIO para obtener el promedio de números en un intervalo de celdas. | C2: Fruta | D2: Importe | F2: Carnicería | G2: Importe
A3: Seleccione la celda D7 y después use el Autosuma para agregar una función PROMEDIO. | C3: Manzanas | D3: 50 | F3: Ternera | G3: 50
A4: Ahora seleccione la celda G7 y escriba una función PROMEDIO escribiendo =PROMEDIO(G3:G6). | C4: Naranjas | D4: 20 | F4: Pollo | G4: 30
A5: En la celda D15, puede usar Autosuma o escribir para introducir otra función PROMEDIO. | C5: Plátanos | D5: 60 | F5: Cerdo | G5: 10
A6: MIRE ESTO Seleccione cualquier intervalo de números y después mire la barra de estado para obtener un promedio instantáneo. | C6: Limones | D6: 40 | F6: Pescado | G6: 50
A7: Activar a la hoja anterior | C7: PROMEDIO > | F7: PROMEDIO >
A8: Ir a la siguiente hoja
A9: CRÉDITO ADICIONAL Pruebe a usar MEDIANA o MODO aquí. MEDIANA le proporciona el valor central de un conjunto de datos, mientras que MODO le proporciona la opción que se produce con más frecuencia. | C9: Elemento | D9: Importe | F9: Elemento | G9: Importe
A10: Vínculos para obtener más información en la Web | C10: Pan | D10: 50 | F10: Pan | G10: 50
A11: Seleccione esta opción para obtener información en la Web sobre la función PROMEDIO | C11: Donuts | D11: 100 | F11: Donuts | G11: 100
A12: Seleccione esta opción para obtener información en la Web sobre la función MEDIANA | C12: Galletas | D12: 40 | F12: Galletas | G12: 40
A13: Seleccione esta opción para obtener información en la Web sobre la función MODO | C13: Pasteles | D13: 50 | F13: Pasteles | G13: 50
A14: Seleccione esta opción para obtener información en la Web sobre el aprendizaje gratuito de Excel. | C14: Tartas | D14: 20 | F14: Tartas | G14: 20
C15: PROMEDIO >

Sheet MIN y MAX
A1: Funciones MIN y MAX
A2: Use la función MIN para obtener el número mínimo de un rango de celdas. | C2: Fruta | D2: Importe | F2: Carnicería | G2: Importe
A3: Use la función MAX para obtener el número máximo de un rango de celdas. | C3: Manzanas | D3: 50 | F3: Ternera | G3: 50
A4: Seleccione la celda D7 y después use el Asistente de Autosuma para agregar una función MIN. | C4: Naranjas | D4: 20 | F4: Pollo | G4: 30
A5: Ahora seleccione la celda G7 y escriba una función MAX escribiendo =MAX(G3:G6). | C5: Plátanos | D5: 60 | F5: Cerdo | G5: 10
A6: En la celda D15, puede usar el Asistente de Autosuma o escribir para introducir una función MIN o MAX. | C6: Limones | D6: 40 | F6: Pescado | G6: 50
A7: Más información en la Web | C7: MIN > | F7: MAX >
A8: Todo sobre la función MIN
A9: Todo sobre la función MAX | C9: Elemento | D9: Importe | F9: Elemento | G9: Importe
A10: Aprendizaje gratuito de Excel en línea | C10: Pan | D10: 50 | F10: Pan | G10: 50
A11: INFORMACIÓN ÚTIL Puede usar MIN o MAX con varios intervalos o valores para mostrar el mayor o menor de los valores, como =MIN(A1:A10;B1:B10) o =MAX(A1:A10;B1), donde B1 contiene un valor de umbral, como 10, en cuyo caso la fórmula no devolverá un resultado menor que 10. | C11: Donuts | D11: 100 | F11: Donuts | G11: 100
C12: Galletas | D12: 40 | F12: Galletas | G12: 40
C13: Pasteles | D13: 50 | F13: Pasteles | G13: 50
C14: Tartas | D14: 20 | F14: Tartas | G14: 20
C15: MIN o MAX > | G15: =MIN(G10:G14,10) -> 10

Sheet Fecha y hora
A1: Funciones de fecha
A2: Excel puede proporcionarle la fecha actual, según la configuración regional de su equipo. También puede agregar y restar fechas.
A3: Consulte la función HOY, que proporciona la fecha de hoy. Estas son funciones dinámicas o volátiles, por lo que, al abrir el libro mañana, tendrá la fecha de mañana. En la celda D6, escriba =HOY().
A4: Restar fechas: escriba su siguiente cumpleaños en formato DD-MM-AA en la celda D7 y vea cómo Excel le indica cuántos días faltan usando =D7-D6 en la celda D8.
A5: Agregar fechas: supongamos que desea saber en qué fecha vence una factura, o cuándo tiene que devolver un libro de la biblioteca. Puede agregar días a una fecha para obtener la información. En la celda D10, escriba un número de días aleatorio. En la celda D11, hemos agregado =D6+D10 para calcular la fecha de vencimiento a partir de la fecha actual. | C5: Funciones de fecha
A6: INFORMACIÓN ÚTIL Excel mantiene fechas y horas en función del número de días desde el 1 de enero de 1900. Las horas se conservan en partes fraccionarias de un día basándose en los minutos. Así, 01-01-2017 12:30 se almacena como 42736.5208. Si la hora o fecha aparecen como números como ese, puede presionar Ctrl + 1 > Número y seleccionar un formato de fecha u hora. | C6: Fecha de hoy: | F6: =IF(D6=TODAY(),"¡Eso es!","") -> 
A7: DETALLE IMPORTANTE Si no desea que Excel muestre un número negativo porque aún no ha escrito su cumpleaños, puede usar una función SI así: =SI(D7="";"";D7-D6), que dice "SI D7 es igual a nada, entonces no muestres nada; en caso contrario, muestra D7 menos D6". | C7: Su cumpleaños:
A8: Funciones de hora | C8: Días hasta su cumpleaños: | D8: =D7-D6 -> 0
A9: Excel puede proporcionarle la hora actual, según la configuración regional de su equipo. También puede agregar y restar horas. Por ejemplo, es posible que deba realizar un seguimiento de cuántas horas trabajó un empleado cada semana, y calcular su paga y las horas extra.
A10: En la celda D28, escriba =AHORA(), lo que le dará la hora actual y se actualizará cada vez que Excel calcule. Si necesita cambiar el formato de la hora, puede presionar Ctrl+1 > Número > Hora > y seleccionar el formato que desee. | C10: Días del período de gracia:
A11: Sumar horas entre intervalos de tiempo: en la celda D36 hemos escrito =((D35-D32)-(D34-D33))*24, que calcula la hora de inicio y finalización de la jornada de una persona y después resta el tiempo que utilizó para comer. El *24 al final de la fórmula convierte la parte fraccionaria del día que Excel ve en horas. Sin embargo, debe dar formato a la celda como número. Para ello, vaya a Inicio > Formato > Celdas (Ctrl+1) > Número > Número > 2 decimales. | C11: La factura vence el: | D11: =D6+D10 -> 00:00:00
A12: Si esta fórmula pudiese hablar, diría "Tome la hora de salida y réstela de la hora de entrada, después reste las horas del almuerzo y multiplique el resultado por 24 para convertir las fracciones de Excel en horas", o =((Hora de entrada - Hora de salida)-(Vuelta del almuerzo - Salida para el almuerzo))*24.
A13: Anterior
A14: Siguiente
A15: Más información en la Web
A16: Todo sobre la función HOY
A17: Todo sobre la función AHORA
A18: Todo sobre la función FECHA
A19: Aprendizaje gratuito de Excel en línea
C27: Funciones de hora
C28: Hora actual:
C31: Horas diarias trabajadas
C32: Hora de entrada: | D32: 08:00:00
C33: Fin del almuerzo: | D33: 12:00:00
C34: Inicio del almuerzo: | D34: 13:00:00
C35: Hora de salida: | D35: 17:00:00
C36: Total de horas: | D36: =((D35-D32)-(D34-D33))*24 -> 8
C45: Fecha y hora estáticas
C46: Fecha: | D46: 2017-09-27
C47: Hora: | D47: 08:52:00

Sheet Unir texto y números
A1: Unir texto en celdas diferentes
A2: Hay muchas ocasiones usando Excel en las que querrá combinar texto en celdas diferentes. Un ejemplo muy común es que puede tener nombres y apellidos, y desea combinarlos como nombre, apellidos o nombre completo. Afortunadamente, Excel nos permite hacerlo con el signo Y comercial (&) que puede escribir con Mayús+6. | C2: Nombre | D2: Apellidos | E2: Apellidos, nombre | F2: Nombre completo
A3: En la celda E3, escriba =D3&C3 para unir el nombre y los apellidos. | C3: Marina | D3: Rodríguez | E3: =D3&", "&C3 -> Rodríguez, Marina | F3: =C3&" "&D3 -> Marina Rodríguez
A4: Sin embargo RodríguezMarina no parece correcto. Es necesario agregar una coma y un espacio. Para ello, usaremos comillas para crear una nueva cadena de texto. Esta vez, escriba =D3&"; "&C3. La parte &"; "& nos permite unir una coma y un espacio con el texto en las celdas. | C4: Carlos | D4: Espinosa
A5: Para crear el nombre completo, se deberán unir el nombre y los apellidos, pero usar un espacio sin una coma. En F3, escriba =C3&" "&D3. | C5: Ene | D5: Palacios
A6: Vaya hacia abajo para obtener más detalles. | C6: María | D6: Gómez
A7: Siguiente | C7: Esteban | D7: Torres
A8: Usar texto y números juntos | C8: Óscar | D8: Valentín
A9: Ahora, usaremos el & para unir texto y números, no solo texto y texto Mire las celdas C28:D29. ¿Puede ver que la fecha y la hora están en celdas independientes? Puede combinarlos con el símbolo &, como se muestra en las celdas C32:C33, pero no queda bien, ¿verdad? Desafortunadamente, Excel no sabe cómo desea dar formato a los números, por lo que los divide a su formato más básico, que es la fecha de la serie en este caso. Es necesario que indiquemos explícitamente a Excel cómo dar formato a la parte del número de la fórmula, para que lo muestre como desea en la cadena de texto resultante. Puede hacerlo con la función TEXTO y un código de formato. | C9: Íker | D9: Valladares
A10: En la celda C36, escriba =C28&" "&TEXTO(D28;"DD-MM-AAAA"). DD-MM-AAAA es el código de formato para el día-mes-año, por ejemplo 25-09-2017. | C10: Irene | D10: Robledo
A11: En la celda C37, escriba =C29&" "&TEXTO(D29;"H:MM"). H:MM es el formato de código de para Horas:Minutos, por ejemplo 13:30.
A12: MIRE ESTO Las fórmulas, especialmente las grandes, pueden resultar difíciles de leer, pero puede dividir los elementos con espacios así: =C28 & " " & TEXTO(D28;"DD-MM-AAAA")
A13: VALE LA PENA EXPLORAR Si no sabe qué código de formato usar, puede presionar Ctrl+1 > Número para dar formato a la celda que desee. Después seleccione la opción Personalizado. Puede copiar el código de formato que se muestra a la fórmula.
A14: Más información en la Web
A15: Todo sobre la función TEXTO
A16: Combinar texto y números
A17: Aprendizaje gratuito de Excel en línea
C27: Usar texto y números
C28: Fecha de hoy: | D28: =TODAY() -> 2019-10-10
C29: Hora actual: | D29: =NOW() -> 43748.46644
C31: Unir texto y números
C32: =C28&" "&D28 -> Fecha de hoy: 43748
C33: =C29&" "&D29 -> Hora actual: 43748,4664383102
C35: Dar formato a texto y números
C36: =C28 &" "& TEXT(D28,"DD-MM-AAAA") -> Fecha de hoy: 10-10-2019
C37: =C29&" "&TEXT(D29,"H:MM") -> Hora actual: 11:11

Sheet Instrucciones SI
A1: Instrucciones SI
A2: Las instrucciones SI le permiten realizar comparaciones lógicas entre las condiciones. Por lo general, una instrucción SI indica que, si una condición es verdadera, se realizará una acción, en caso contrario, se realizará otra. Las fórmulas pueden devolver texto, valores o incluso más cálculos.
A3: En la celda D9 escriba =SI(C9="Manzana";VERDADERO;FALSO). La respuesta correcta es verdadero.
A4: Copie desde la celda D9 hasta la D10. Aquí la respuesta debería ser FALSO porque una naranja no es una manzana.
A5: Pruebe otro ejemplo consultando la fórmula en la celda D12. Empezamos con =SI(C12<100;"Menor que 100";"Mayor que o igual a 100"). ¿Qué ocurre si escribe un número mayor que 100 en la celda C12?
A6: DETALLE IMPORTANTE VERDADERO y FALSO son, a diferencia de otras palabras en Excel, fórmulas en el sentido de que no tiene que estar entre comillas y Excel las pondrá en mayúscula automáticamente. Los números no tienen que estar entre comillas. El texto normal, como Sí o No tiene que estar entre comillas como aquí: =SI(C9="manzana";"Sí";"No")
A7: Vaya hacia abajo para obtener más detalles
A8: Siguiente | C8: Instrucciones SI
A9: Instrucción SI con otra función | C9: Manzana
A10: Las instrucciones SI pueden forzar cálculos adicionales que se deben realizar si se cumple una condición. Aquí vamos a evaluar una celda para ver si deben aplicarse impuestos sobre las ventas y calcular si la condición es verdadera. | C10: Naranja
A11: En la celda F33, hemos escrito = SI(E33="Sí";F31*Impuesto sobre las ventas,0), donde se configura el impuesto sobre las ventas como un rango con nombre con un valor de 0,0825. La fórmula indica que, si la celda E33 es igual a Sí, multiplica la celda F31 por el impuesto sobre las ventas, de lo contrario, devuelve 0. Pruebe a cambiar Sí y No en la celda E33 para ver cómo cambia el cálculo.
A12: A continuación, hemos agregado una instrucción SI para calcular los gastos de envío si es necesario. En la celda F35 verá =SI(E35="Sí";SUM(D28:D29)*1.25;0). Esto indica "Si la celda E35 es igual a Sí, realiza la suma de la columna Cantidad de la tabla anterior y multiplícalo por 1,25, de lo contrario, devuelve 0". | C12: 50 | D12: =IF(C12<100,"Menor que 100","Mayor o igual a 100") -> Menor que 100
A13: Después, cambie el 1,25 en la fórmula en la celda F35 a "Envío". Cuando empiece a escribir, la corrección automática de Excel debería encontrarla automáticamente. Si es así, presione la tecla Tab para escribirla. Esto es un rango con nombre y lo introducimos desde Fórmulas > Asignar nombre. Ahora, si quiere cambiar los gastos de envío, solo tiene que realizar la acción en un lugar y puede usar el nombre de envío en cualquier lugar del libro.
A14: INFORMACIÓN ÚTIL Al crear una fórmula, Excel colocará automáticamente bordes de colores alrededor de los intervalos a los que hace referencia la fórmula y los intervalos correspondientes en la fórmula serán del mismo color. Puede ver esto si selecciona la celda F33 y presiona F2 para modificar la fórmula.
A15: SUGERENCIA DEL EXPERTO Los rangos con nombre permiten definir términos o valores en un solo lugar y después volver a usarlos en todo un libro. Puede ver todos los rangos con nombre de este libro haciendo clic en Fórmulas > Administrador de nombres. Haga clic aquí para obtener más información.
A16: Anterior
A17: Siguiente
A18: Más información en la Web
A19: Todo sobre la función SI
A20: Todo sobre la función SI.CONJUNTO
A21: Instrucciones SI avanzadas
A22: Aprendizaje gratuito de Excel en línea
C27: Elemento | D27: Cantidad | E27: Coste | F27: Total
C28: Widget | D28: 2 | E28: 9.76 € | F28: ='Instrucciones SI'!$E$28:$E$29*'Instrucciones SI'!$D$28:$D$29 -> 19.52 €
C29: Doohickey | D29: 3 | E29: 3.42 € | F29: ='Instrucciones SI'!$E$28:$E$29*'Instrucciones SI'!$D$28:$D$29 -> 10.26 €
D31: Subtotal | E31: =SUM('Instrucciones SI'!$E$28:$E$29) -> 13.18 € | F31: =SUM('Instrucciones SI'!F28:F29) -> 29.78 €
D33: ¿Impuesto sobre las ventas? | E33: Sí | F33: =IF(E33="Sí",F31*Impuesto_sobre_las_ventas,0) -> 2.46 €
D35: ¿Envío? | E35: Sí | F35: =IF(E35="Sí",SUM(D28:D29)*1.25,0) -> 6.25 €
D37: Total | F37: =SUM(F33,F31,F35) -> 38.48 €

Sheet BUSCARV
A1: BUSCARV
A2: BUSCARV es una de las funciones más utilizadas en Excel (y también una de nuestras favoritas). BUSCARV le permite buscar un valor en una columna a la izquierda, después devuelve información en otra columna a la derecha si encuentra a una coincidencia. BUSCARV dice:
A3: =BUSCARV(A1;B:C;2;FALSO)
A4: ¿Qué desea buscar?
A5: Si lo encuentra, ¿a cuántas columnas a la derecha desea que aparezca un valor?
A6: ¿Dónde desea buscarlo?
A7: ¿Desea a una coincidencia exacta o una aproximada?
A8: En la celda D22, escriba =BUSCARV(C22;C17:D20;2;FALSO). La respuesta correcta para manzanas es 50. BUSCARV buscó manzanas, lo encontró, después fue a la columna de la derecha y devolvió la cantidad.
A9: Ahora, intente hacerlo en la sección de carnes, en la celda G22. Debería obtener el resultado =BUSCARV(F22;F17:G20;2;FALSO).
A10: EXPERIMENTO Intente seleccionar diferentes elementos de las listas desplegables. Verá que las celdas de resultado se actualizan al instante con los nuevos valores.
A11: Vaya hacia abajo para obtener más detalles.
A12: Siguiente
A13: BUSCARV y #N/D
A14: Constantemente, se encontrará en una situación donde BUSCARV no puede encontrar lo que ha solicitado y devuelve un error (#N/D). A veces, es simplemente porque el valor de búsqueda no existe, o puede ser porque la celda de referencia todavía no tiene un valor.
A15: Si sabe que el valor de búsqueda existe, pero desea ocultar el error si la celda de la búsqueda está en blanco, puede usar una instrucción SI. En este caso, encapsularemos la fórmula BUSCARV existente así en la celda D43: =SI(C43="";"";BUSCARV(C43;C37:D41;2;FALSO)) Esto indica que si la celda C43 es igual a nada (""), devuelve nada, de lo contrario, devuelve resultados de BUSCARV. Tenga en cuenta el segundo paréntesis de cierre al final de la fórmula. Cierra la instrucción SI.
A16: Si no sabe con seguridad si existe el valor de búsqueda, pero desea suprimir el error #N/D, puede usar una función de control de errores denominada SI.ERROR en la celda G43: =SI.ERROR(BUSCARV(F43;F37:G41;2;FALSO),""). SI.ERROR indica que si BUSCARV devuelve un resultado válido, mostrarlo, de lo contrario, no mostrar nada (""). No se muestra nada aquí (""), pero también puede usar números (0,1, 2, etc.), o texto, como "La fórmula no es correcta". | C16: Fruta | D16: Importe | F16: Carnicería | G16: Importe
A17: DETALLE IMPORTANTE SI.ERROR es lo que se denomina un controlador de errores global, lo que significa que suprimirá cualquier error que pueda producir la fórmula. Esto puede provocar problemas si Excel le da una notificación de que la fórmula contiene un error legítimo que debe solucionarse. Una regla general es no agregar controladores de errores en las fórmulas hasta que sepa con total seguridad que funcionan correctamente. | C17: Manzanas | D17: 50 | F17: Ternera | G17: 50
A18: Anterior | C18: Naranjas | D18: 20 | F18: Pollo | G18: 30
A19: Siguiente | C19: Plátanos | D19: 60 | F19: Cerdo | G19: 10
A20: Más información en la Web | C20: Limones | D20: 40 | F20: Pescado | G20: 50
A21: Todo sobre la función BUSCARV
A22: Todo sobre las funciones INDICE Y COINCIDIR | C22: Manzanas | F22: Cerdo
A23: Todo sobre la función SI.ERROR
A24: Use tablas dinámicas para analizar datos de una hoja de cálculo
A25: Aprendizaje gratuito de Excel en línea
C35: Si la función SUMA en la celda D42 pudiera hablar, diría: Sume los valores en las celdas D38, D39, D40 y D41.
C36: Elemento | D36: Importe | F36: Elemento | G36: Importe
C37: Pan | D37: 50 | F37: Pan | G37: 50
C38: Donuts | D38: 100 | F38: Donuts | G38: 100
C39: Galletas | D39: 40 | F39: Galletas | G39: 40
C40: Pasteles | D40: 50 | F40: Pasteles | G40: 50
C41: Tartas | D41: 20 | F41: Tartas | G41: 20
D43: =VLOOKUP(C43,C37:D41,2,FALSE) ->  | F43: Pastelería | G43: =IFERROR(VLOOKUP(F43,F37:G41,2,FALSE),"") -> 

Sheet Funciones condicionales
A1: Funciones condicionales: SUMAR.SI
A2: Las funciones condicionales le permiten sumar, obtener el promedio, contar u obtener el mínimo o el máximo de un intervalo según una condición determinada o los criterios que especifique. Como, por ejemplo, ¿de todas las frutas en la lista, cuántas son manzanas? O bien, ¿cuántas naranjas son del tipo Florida? | C2: Fruta | D2: Importe | F2: Fruta | G2: Tipo | H2: Importe | Z2: Fruta | AB2: Manzanas | AD2: Naranjas | AF2: Plátanos | AH2: Limones
A3: SUMAR.SI le permite sumar en un intervalo según un criterio específico que busca en otro intervalo, como el número de manzanas que tiene. Seleccione la celda D17 y escriba =SUMAR.SI(C3:C14;C17;D3:D14). SUMAR.SI está estructurada así: | C3: Manzanas | D3: 50 | F3: Manzanas | G3: Fuji | H3: 50 | Z3: Manzanas | AB3: Fuji | AD3: Florida | AF3: Cavendish | AH3: Rugoso
A4: =SUMAR.SI(C3:C14;C17;D3:D14) | C4: Naranjas | D4: 20 | F4: Naranjas | G4: Florida | H4: 20 | Z4: Naranjas | AB4: Manzana paraíso | AD4: Ombligo | AF4: Bizcocho de soletilla | AH4: Eureka
A5: ¿Qué intervalo desea ver? | C5: Plátanos | D5: 60 | F5: Plátanos | G5: Cavendish | H5: 60 | Z5: Plátanos
A6: ¿Qué valor (texto o número) desea buscar? | C6: Limones | D6: 40 | F6: Limones | G6: Rugoso | H6: 40 | Z6: Limones
A7: ¿Para cada coincidencia, en qué intervalo desea sumar? | C7: Manzanas | D7: 50 | F7: Manzanas | G7: Manzana paraíso | H7: 50
A8: SUMAR.SI.CONJUNTO es lo mismo que SUMAR.SI, pero le permite usar varios criterios. Así, en este ejemplo, puede buscar frutas y tipos, en lugar de solo frutas. Seleccione la celda H17 y escriba =SUMAR.SI.CONJUNTO(H3:H14;F3:F14;F17;G3:G14;G17). SUMAR.SI.CONJUNTO está estructurada así: | C8: Naranjas | D8: 20 | F8: Naranjas | G8: Ombligo | H8: 20
A9: =SUMAR.SI(H3:H14;F3:F14;F17;G3:G14;G17) | C9: Plátanos | D9: 60 | F9: Plátanos | G9: Bizcocho de soletilla | H9: 60
A10: ¿Qué intervalo desea sumar? | C10: Limones | D10: 40 | F10: Limones | G10: Eureka | H10: 40
A11: Este es el primer intervalo para buscar coincidencias | C11: Manzanas | D11: 50 | F11: Manzanas | G11: Manzana paraíso | H11: 50
A12: Estos son los criterios de la primera coincidencia | C12: Naranjas | D12: 20 | F12: Naranjas | G12: Ombligo | H12: 20
A13: Este es el segundo intervalo para buscar coincidencias | C13: Plátanos | D13: 60 | F13: Plátanos | G13: Cavendish | H13: 60
A14: Estos son los criterios de la segunda coincidencia | C14: Limones | D14: 40 | F14: Limones | G14: Eureka | H14: 40
A15: SUGERENCIA DEL EXPERTO Cada una de las celdas de frutas y tipos tiene una lista desplegable donde puede seleccionar diferentes frutas. Pruébelo y vea cómo se actualizan automáticamente las fórmulas.
A16: Vaya hacia abajo para obtener más detalles. | C16: Fruta | D16: SUMAR.SI | F16: Fruta | G16: Tipo | H16: SUMAR.SI.CONJUNTO
A17: Siguiente paso | C17: Manzanas | F17: Naranjas | G17: Florida
A18: Funciones condicionales: CONTAR.SI
A19: CONTAR.SI y CONTAR.SI.CONJUNTO le permiten contar valores de un intervalo según unos criterios que especifique. Son un poco diferentes de las otras funciones SI y SI.CONJUNTO, porque solo tienen criterios y un intervalo de criterios. No evalúan un intervalo y después buscan en otro para resumir.
A20: Seleccione la celda D64 y escriba =CONTAR.SI(C50:C61;C64). CONTAR.SI está estructurada así:
A21: =COUNTIF(C50:C61,C64) -> 3
A22: ¿Qué intervalo desea ver?
A23: ¿Qué valor (texto o número) desea buscar?
A24: CONTAR.SI.CONJUNTO es lo mismo que SUMAR.SI, pero le permite usar varios criterios. Así, en este ejemplo, puede buscar frutas y tipos, en lugar de solo frutas. Seleccione la celda H64 y escriba =CONTAR.SI.CONJUNTO(F50:F61;F64;G50:G61;G64). CONTAR.SI.CONJUNTO está estructurada así:
A25: =COUNTIFS(F50:F61,F64,G50:G61,G64) -> 1
A26: Este es el primer intervalo para contar
A27: Estos son los criterios de la primera coincidencia
A28: Este es el segundo intervalo para contar
A29: Estos son los criterios de la segunda coincidencia
A30: Vaya hacia abajo para obtener más detalles.
A31: Siguiente
A32: Más funciones condicionales
A33: Ya sabe SUMAR.SI, SUMAR.SI.CONJUNTO, CONTAR.SI y CONTAR.SI.CONJUNTO. Ahora puede probar por su cuenta otras funciones, como PROMEDIO.SI.CONJUNTO, MAX.SI.CONJUNTO, MIN.SI.CONJUNTO. Están estructuradas del mismo modo, por lo que cuando reciba una fórmula escrita, simplemente puede cambiar el nombre de la función por la que desee. Hemos preparado todas las funciones que necesitará para la celda E106, por lo que puede copiar y pegar estas, o intentar escribirlas usted para la práctica. SUMAR.SI =SUMAR.SI(C92:C103;C106;E92:E103) SUMAR.SI.CONJUNTO =SUMAR.SI.CONJUNTO(E92:E103;C92:C103;C106;D92:D103;D106) PROMEDIO.SI =PROMEDIO.SI(C92:C103;C106;E92:E103) PROMEDIO.SI.CONJUNTO =PROMEDIO.SI.CONJUNTO(E92:E103;C92:C103;C106;D92:D103;D106) CONTAR.SI =CONTAR.SI(C92:C103;C106) CONTAR.SI.CONJUNTO =CONTAR.SI.CONJUNTO(C92:C103;C106;D92:D103;D106) MAX.SI.CONJUNTO =MAX.SI.CONJUNTO(E92:E103;C92:C103;C106;D92:D103;D106) MIN.SI.CONJUNTO =MAX.SI.CONJUNTO(E92:E103;C92:C103;C106;D92:D103;D106)
A34: Vaya hacia abajo para obtener más detalles.
A35: Siguiente
A36: SUMAR.SI con un argumento de valor
A37: Este es un ejemplo de la función SUMAR.SI con mayor (>) para encontrar todos los valores mayores de un determinado importe:
A38: =SUMIF(D118:D122,">=50") -> 200
A39: Sume algunos valores basados en este criterio:
A40: ...Busque en estas celdas...
A41: ...y, si el valor es mayor que 50, súmelo.
A42: NOTA: Si nota que realiza muchas fórmulas condicionales, es posible que una tabla dinámica sea una solución mejor. Consulte este artículo sobre tablas dinámicas para obtener más información.
A43: Más información en la Web
A44: Todo sobre la función SUMAR.SI
A45: Todo sobre la función SUMAR.SI.CONJUNTO
A46: Todo sobre la función CONTAR.SI
A47: Todo sobre la función CONTAR.SI.CONJUNTO
A48: Todo sobre la función PROMEDIO.SI
A49: Todo sobre la función PROMEDIO.SI.CONJUNTO | C49: Fruta | D49: Importe | F49: Fruta | G49: Tipo | H49: Importe
A50: Todo sobre la función MIN.SI.CONJUNTO | C50: Manzanas | D50: 50 | F50: Manzanas | G50: Fuji | H50: 50
A51: Todo sobre la función MAX.SI.CONJUNTO | C51: Naranjas | D51: 20 | F51: Naranjas | G51: Florida | H51: 20
A52: Crear una lista desplegable | C52: Plátanos | D52: 60 | F52: Plátanos | G52: Cavendish | H52: 60
A53: Aprendizaje gratuito de Excel en línea | C53: Limones | D53: 40 | F53: Limones | G53: Rugoso | H53: 40
A54: Volver al principio | C54: Manzanas | D54: 50 | F54: Manzanas | G54: Manzana paraíso | H54: 50
A55: Siguiente | C55: Naranjas | D55: 20 | F55: Naranjas | G55: Ombligo | H55: 20
C56: Plátanos | D56: 60 | F56: Plátanos | G56: Bizcocho de soletilla | H56: 60
C57: Limones | D57: 40 | F57: Limones | G57: Eureka | H57: 40
C58: Manzanas | D58: 50 | F58: Manzanas | G58: Manzana paraíso | H58: 50
C59: Naranjas | D59: 20 | F59: Naranjas | G59: Ombligo | H59: 20
C60: Plátanos | D60: 60 | F60: Plátanos | G60: Cavendish | H60: 60
C61: Limones | D61: 40 | F61: Limones | G61: Eureka | H61: 40
C63: Fruta | D63: CONTAR.SI | F63: Fruta | G63: Tipo | H63: CONTAR.SI.CONJUNTO
C64: Manzanas | D64: =COUNTIF(C50:C61,C64) -> 3 | F64: Naranjas | G64: Florida | H64: =COUNTIFS(F50:F61,F64,G50:G61,G64) -> 1
C91: Fruta | D91: Tipo | E91: Importe
C92: Manzanas | D92: Fuji | E92: 50
C93: Naranjas | D93: Florida | E93: 20
C94: Plátanos | D94: Cavendish | E94: 60
C95: Limones | D95: Rugoso | E95: 40
C96: Manzanas | D96: Manzana paraíso | E96: 50
C97: Naranjas | D97: Ombligo | E97: 20
C98: Plátanos | D98: Bizcocho de soletilla | E98: 60
C99: Limones | D99: Eureka | E99: 40
C100: Manzanas | D100: Manzana paraíso | E100: 50
C101: Naranjas | D101: Ombligo | E101: 20
C102: Plátanos | D102: Cavendish | E102: 60
C103: Limones | D103: Eureka | E103: 40
C105: Fruta | D105: Tipo | E105: Inténtelo
C106: Limones | D106: Eureka | E106: =AVERAGEIFS(E92:E103,C92:C103,C106,D92:D103,D106) -> 40
C117: Elemento | D117: Importe
C118: Pan | D118: 50
C119: Donuts | D119: 100
C120: Galletas | D120: 40
C121: Pasteles | D121: 50
C122: Tartas | D122: 20
D123: =SUMIF(D118:D122,">=50") -> 200

Sheet Asistente para funciones
A1: Deje que el Asistente para funciones le guíe
A2: Si conoce el nombre de la función que desea, pero no tiene claro cómo crearla, puede usar el Asistente para funciones para obtener ayuda.
A3: Seleccione la celda D10 y vaya a Fórmulas > Insertar función > escriba BUSCARV en el cuadro Buscar una función y presione IR. Cuando vea BUSCARV resaltado, haga clic en Aceptar en la parte inferior. Al seleccionar una función en la lista, Excel mostrará la sintaxis.
A4: Después escriba los argumentos de función en los cuadros de texto correspondientes. A medida que escriba cada uno, Excel lo evaluará y le mostrará el resultado, con el resultado final en la parte inferior. A medida que escriba cada sección, los criterios para cada argumento aparecerán en la parte inferior del formulario. Haga clic en Aceptar cuando haya terminado, y Excel introducirá la fórmula. | C4: Fruta | D4: Importe
A5: MIRE ESTO Debería obtener el resultado =BUSCARV(C10;C5:D8;2;FALSO) | C5: Manzanas | D5: 50
A6: INFORMACIÓN ÚTIL Puede escribir referencias de celdas e intervalos, o seleccionarlos con el mouse. | C6: Naranjas | D6: 20
A7: INFORMACIÓN ÚTIL A medida que escriba la sección de cada argumento, se mostrará la descripción del argumento en la parte inferior del formulario, encima del resultado de la fórmula. | C7: Plátanos | D7: 60
A8: Anterior | C8: Limones | D8: 40
A9: Siguiente
A10: Más información en la Web | C10: Manzanas | D10: =VLOOKUP(C10,C5:D8,2,FALSE) -> 50
A11: Información general sobre fórmulas en Excel
A12: Funciones de Excel (por categoría)
A13: Funciones de Excel (orden alfabético)
A14: Aprendizaje gratuito de Excel en línea

Sheet Errores de fórmula
A1: Corregir errores de fórmula
A2: En algún momento, verá una fórmula que tiene un error, que Excel mostrará con #ErrorName. Los errores pueden ser útiles, ya que indican si algo no funciona, pero pueden ser difíciles de corregir. Afortunadamente, hay varias opciones que pueden ayudarle a localizar el origen del error y corregirlo.
A3: Comprobación de errores: vaya a Fórmulas > Comprobación de errores. Se cargará un cuadro de diálogo que le indicará la causa general del error específico. En la celda D9, el error #N/D se debe a que no hay ningún valor coincidente con "Manzana". Puede solucionarlo usando un valor que exista, suprimiendo el error con SI.ERROR, o pasarla por alto teniendo en cuenta que desaparecerá cuando usa un valor que exista. | C3: Fruta | D3: Importe
A4: Si hace clic en Ayuda sobre este Error, se abrirá un tema de ayuda específico para el mensaje de error. Si hace clic en Mostrar pasos de cálculo, se cargará un cuadro de diálogo de Evaluar fórmula. | C4: Manzanas | D4: 50
A5: Cada vez que haga clic en Evaluar, Excel analizará la fórmula sección por sección. No siempre indicará por qué se produce un error, pero si señalará dónde. Desde allí, observe el tema de ayuda para deducir qué ha fallado en la fórmula. | C5: Naranjas | D5: 20
A6: EXPERIMENTO ¿Qué está mal aquí? Sugerencia: Intentamos hacer una SUMA de todos los elementos. | C6: Plátanos | D6: 60
A7: INFORMACIÓN ÚTIL Hacer clic en Opciones le permite establecer las reglas para cuando se muestran o se pasan por alto errores en Excel. | C7: Limones | D7: 40
A8: Anterior
A9: Siguiente | C9: Manzana | D9: =VLOOKUP(C9,C3:D7,2,FALSE) -> 
A10: Más información en la Web
A11: Detectar errores en fórmulas
A12: Cómo evitar fórmulas rotas
A13: Evaluar paso a paso una fórmula anidada
A14: Aprendizaje gratuito de Excel en línea
C30: Fruta | D30: Importe
C31: Manzanas | D31: 50
C32: Naranjas | D32: 20
C33: Plátanos | D33: 60
C34: Limones | D34: 40
C36: Total | D36: =sume(D31:D34) -> 

Sheet Obtener más información
A1: ¿Tiene más preguntas sobre Excel?
A2: Presione ALT+Q y escriba lo que quiera saber.
A3: Continuemos. Hay más que aprender con Excel:
A4: LinkedIn Learning: Cursos de vídeo para todos los niveles, desde principiante a avanzado. Llévelo a su ritmo.
A5: Comunidad: Formule preguntas y conéctese con otros aficionados a Excel.
A6: ¿Más novedades? Los suscriptores de Office 365 obtienen actualizaciones continuas y nuevas características.
